bitfinex/quotes_SOLUSD_20241001
["timestamp","ask_amount","ask_price","bid_price","bid_amount"]
[1727792182140,6.5076,153.67,153.62,6.5092]
[1727792182506,6.5079,153.66,153.61,22.7847]
[1727792182908,6.5091,153.64,153.59,6.5104]
[1727792183211,22.2667,153.72,153.58,22.7892]
[1727792183212,6.5094,153.63,153.58,22.7892]
[1727792183715,6.5086,153.65,153.58,16.278]
[1727792183918,1.30082158,153.71,153.59,1.30175526]
[1727792184313,6.5066,153.69,153.63,23.776884]
[1727792184631,6.507,153.68,153.64,6.5086]
[1727792184813,6.507,153.68,153.63,30.285884]
[1727792185008,6.5075,153.67,153.63,30.285884]
[1727792185227,6.5075,153.67,153.63,23.776884]
[1727792187234,6.5083,153.65,153.6,6.5103]
[1727792187414,7.80812158,153.68,153.63,6.5091]
[1727792187731,6.5069,153.69,153.64,7.8102221]
[1727792187937,1.30082158,153.7,153.64,7.8102221]
[1727792188128,1.30082158,153.7,153.61,16.2741]
[1727792188129,6.507,153.68,153.63,6.509]
[1727792189134,1.30082158,153.67,153.62,23.776884]
[1727792189333,6.5079,153.66,153.62,23.776884]
[1727792189513,1.30082158,153.69,153.63,1.30162357]
[1727792189715,1.30082158,153.69,153.61,16.2741]
[1727792190038,6.5079,153.66,153.62,1.30168921]
[1727792190215,1.30082158,153.69,153.63,23.776884]
[1727792190216,6.507,153.68,153.63,23.776884]
[1727792190416,7.80702158,153.7,153.65,6.5081]
[1727792190624,6.5062,153.7,153.66,1.30135691]
[1727792190819,22.2667,153.72,153.66,7.80905691]
[1727792191031,6.583,153.72,153.68,6.5069]
[1727792191237,6.583,153.72,153.69,1.30115677]
[1727792191419,6.5062,153.7,153.67,16.268]
[1727792191737,6.5066,153.69,153.66,23.776884]
[1727792191939,1.30082158,153.71,153.63,23.776884]
[1727792192128,6.5077,153.67,153.63,23.776884]
[1727792192336,6.5071,153.68,153.62,23.776884]
[1727792192630,6.5071,153.68,153.64,6.5086]
[1727792193031,1.30082158,153.71,153.62,23.776884]
[1727792193240,6.508,153.66,153.62,23.776884]
[1727792193822,1.30082158,153.71,153.63,1.30152962]
[1727792194219,6.507,153.68,153.64,6.5086]
[1727792194523,1.30082158,153.71,153.62,23.776884]
[1727792194738,6.5081,153.66,153.62,23.776884]
[1727792195116,6.5075,153.67,153.63,1.30157053]
[1727792195317,1.30082158,153.71,153.64,25.07845177]
[1727792195736,6.5069,153.69,153.64,31.58675177]
[1727792196125,1.30082158,153.68,153.6,16.2755]
[1727792196326,6.5088,153.64,153.6,16.2755]
[1727792196521,6.5075,153.67,153.59,16.2762]
[1727792196831,6.5075,153.67,153.61,6.5096]
[1727792197032,6.5082,153.66,153.62,1.30150985]
[1727792197236,6.5082,153.66,153.61,6.5096]
[1727792197539,6.5082,153.66,153.63,23.776884]
[1727792197930,6.5084,153.65,153.62,23.776884]
[1727792198441,1.30082158,153.69,153.59,16.2762]
[1727792198442,6.5091,153.63,153.59,16.2762]
[1727792198836,6.5091,153.63,153.59,22.7869]
[1727792199138,1.30082158,153.67,153.6,6.5103]
[1727792199336,6.5083,153.65,153.6,6.5103]
[1727792199538,6.5088,153.64,153.61,23.776884]
[1727792199940,6.5083,153.65,153.61,23.776884]
[1727792200733,16.71552158,153.67,153.6,23.776884]
[1727792200932,6.5095,153.62,153.6,23.776884]
[1727792201238,6.5095,153.62,153.57,6.5115]
[1727792201447,6.51,153.61,153.57,6.5115]
[1727792201621,6.5096,153.62,153.57,6.5115]
[1727792201827,6.5091,153.64,153.59,6.5107]
[1727792202443,6.5075,153.67,153.63,6.509]
[1727792202628,6.5075,153.67,153.6,1.3016775]
[1727792202629,6.5075,153.67,153.64,1.3014871]
[1727792202828,6.5075,153.67,153.62,6.5094]
[1727792202829,6.5075,153.67,153.63,23.776884]
[1727792203133,6.5069,153.69,153.65,23.776884]
[1727792203326,6.5069,153.69,153.66,1.30136757]
[1727792203533,16.4867,153.71,153.67,23.776884]
[1727792203534,6.5058,153.71,153.67,23.776884]
[1727792203746,6.583,153.72,153.68,1.3011059]
[1727792204129,13.0886,153.72,153.68,1.3011059]
[1727792204450,6.5058,153.71,153.68,1.3011059]
[1727792204645,6.5058,153.71,153.67,23.776884]
[1727792204818,6.583,153.72,153.67,23.776884]
[1727792205147,6.5066,153.69,153.67,23.776884]
[1727792205643,6.507,153.68,153.67,23.776884]
[1727792206140,6.507,153.68,153.64,23.776884]
[1727792206346,6.507,153.68,153.64,30.285384]
[1727792206646,6.5075,153.67,153.64,23.776884]
[1727792206825,6.5078,153.66,153.64,23.776884]
[1727792207145,6.5083,153.65,153.6,22.7857]
[1727792207449,1.30082158,153.7,153.61,6.5096]
[1727792207450,6.5079,153.66,153.61,6.5096]
[1727792207640,6.5079,153.66,153.62,1.30153498]
[1727792208234,6.5075,153.67,153.63,6.5091]
[1727792208542,6.5071,153.68,153.63,6.5091]
[1727792208742,6.583,153.72,153.64,1.30139016]
[1727792208965,6.5063,153.7,153.66,6.5077]
[1727792209150,6.5063,153.7,153.65,23.776884]
[1727792209151,6.5057,153.71,153.68,23.776884]
[1727792209463,6.5057,153.71,153.67,7.80863032]
[1727792209464,6.5057,153.71,153.67,23.776884]
[1727792209951,1.30082158,153.71,153.64,22.7798]
[1727792210135,1.30082158,153.71,153.65,23.776884]
[1727792210136,6.5073,153.68,153.65,23.776884]
[1727792210328,1.30082158,153.71,153.65,23.776884]
[1727792210527,6.5071,153.68,153.64,30.285484]
[1727792211135,6.5067,153.69,153.64,30.285484]
[1727792211748,22.8468,153.72,153.64,30.285484]
[1727792211749,6.5063,153.7,153.65,1.30130043]
[1727792211928,6.583,153.72,153.65,1.30130043]
[1727792211929,13.0887,153.72,153.67,6.5073]
[1727792212251,13.0887,153.72,153.66,23.776884]
[1727792212252,13.0887,153.72,153.68,1.30113537]
[1727792212549,6.506,153.71,153.69,23.776884]
[1727792212749,1.30082158,153.74,153.62,43.776884]
[1727792212946,6.5067,153.69,153.65,6.5082]
[1727792213137,6.507,153.68,153.64,22.7796]
[1727792213333,1.30082158,153.72,153.61,16.2744]
[1727792213650,6.5087,153.64,153.61,16.2744]
[1727792213832,16.2668,153.69,153.62,1.30161675]
[1727792214030,1.30082158,153.68,153.62,1.30161675]
[1727792214230,1.30082158,153.68,153.57,54.8267]
[1727792214231,6.5092,153.63,153.59,6.5107]
[1727792214545,6.5088,153.64,153.6,7.81214521]
[1727792214751,1.30082158,153.68,153.6,1.30174521]
[1727792214942,6.1507,153.71,153.58,22.7888]
[1727792214943,6.5096,153.62,153.58,22.7888]
[1727792215135,6.5096,153.62,153.57,32.5581]
[1727792215136,6.5096,153.62,153.56,6.5119]
[1727792215331,6.5091,153.64,153.57,6.5112]
[1727792215530,6.5091,153.64,153.58,1.30174542]
[1727792215729,32.74642158,153.67,153.57,6.5112]
[1727792216044,16.2716,153.65,153.55,16.2809]
[1727792216238,16.2716,153.65,153.52,62.68052351]
[1727792216239,6.5117,153.57,153.52,16.2839]
[1727792216555,6.5117,153.57,153.52,22.7973]
[1727792217135,6.5121,153.56,153.52,22.7973]
[1727792217342,6.5117,153.57,153.52,16.2839]
[1727792217536,1.30082158,153.6,153.52,16.2839]
[1727792217537,6.5121,153.56,153.52,16.2839]
[1727792217740,1.30082158,153.6,153.5,6.5145]
[1727792217741,6.5125,153.55,153.5,6.5145]
[1727792217933,6.5133,153.54,153.49,22.8023]
[1727792218331,6.5138,153.52,153.47,6.5158]
[1727792218738,1.30082158,153.56,153.46,16.2905]
[1727792218935,6.5147,153.5,153.46,16.2905]
[1727792219353,1.30082158,153.54,153.4,38.77852062]
[1727792219530,6.5151,153.49,153.44,6.5171]
[1727792219733,6.5157,153.48,153.43,22.8114]
[1727792220156,6.5157,153.48,153.43,16.2939]
[1727792220547,1.30082158,153.52,153.43,16.2939]
[1727792220548,6.5159,153.47,153.43,16.2939]
[1727792221057,6.5163,153.46,153.41,6.5184]
[1727792221272,6.5168,153.45,153.4,22.816]
[1727792221438,6.0367,153.46,153.37,16.3001]
[1727792221635,1.30082158,153.45,153.37,16.3001]
[1727792221956,6.5181,153.42,153.37,16.3001]
[1727792222262,1.30082158,153.45,153.33,16.3045]
[1727792222459,6.5189,153.4,153.35,6.521]
[1727792222664,21.30082158,153.44,153.32,0.8371491]
[1727792222867,6.5206,153.36,153.32,0.8371491]
[1727792223158,6.5205,153.37,153.32,0.8371491]
[1727792223371,6.5207,153.36,153.33,1.30407803]
[1727792223547,6.5212,153.35,153.33,1.30407803]
[1727792223755,1.30082158,153.38,153.32,0.8371491]
[1727792223756,6.5214,153.34,153.32,0.8371491]
[1727792223944,6.521,153.35,153.32,0.8371491]
[1727792224142,6.5206,153.36,153.32,0.8371491]
[1727792224462,1.30082158,153.38,153.32,0.8371491]
[1727792224463,6.5201,153.37,153.33,1.30414511]
[1727792225046,16.5718,153.39,153.33,1.30414511]
[1727792225440,1.30082158,153.42,153.35,16.3022]
[1727792225662,21.743,153.44,153.39,23.776884]
[1727792226360,32.568,153.53,153.32,0.8371491]
[1727792226361,12.5534,153.46,153.41,30.295284]
[1727792226753,1.30082158,153.45,153.38,16.2989]
[1727792227062,1.30082158,153.45,153.32,0.8371491]
[1727792227436,17.59372158,153.45,153.32,0.8371491]
[1727792227637,20.0,153.44,153.32,23.6649491]
[1727792227837,6.5213,153.35,153.32,0.8371491]
[1727792228041,6.5206,153.36,153.32,0.8371491]
[1727792228573,17.62922158,153.39,153.32,0.8371491]
[1727792228865,6.521,153.35,153.32,0.8371491]
[1727792229052,6.5206,153.36,153.32,0.8371491]
[1727792229566,6.5206,153.36,153.33,1.30421156]
[1727792229754,6.5206,153.36,153.32,0.8371491]
[1727792230368,6.5212,153.35,153.32,0.8371491]
[1727792230667,6.5214,153.34,153.32,0.8371491]
[1727792231163,6.5218,153.33,153.32,0.8371491]
[1727792231378,7.82262158,153.33,153.32,0.8371491]
[1727792231762,1.30082158,153.35,153.32,0.8371491]
[1727792231951,7.82212158,153.35,153.32,0.8371491]
[1727792232353,1.30082158,153.35,153.32,0.8371491]
[1727792232670,6.5215,153.34,153.32,0.8371491]
[1727792233682,1.30082158,153.34,153.32,0.8371491]
[1727792233993,6.5218,153.33,153.32,0.8371491]
[1727792234557,1.30082158,153.35,153.32,0.8371491]
[1727792234875,6.5218,153.33,153.32,0.8371491]
[1727792235376,1.30082158,153.35,153.25,6.5251]
[1727792235377,6.5234,153.3,153.25,6.5251]
[1727792236076,6.5234,153.3,153.26,23.776884]
[1727792236554,21.30082158,153.35,153.27,1.30467113]
[1727792236755,6.5221,153.33,153.28,40.086884]
[1727792236965,6.5213,153.35,153.3,23.776884]
[1727792237167,6.5215,153.34,153.3,23.776884]
[1727792237368,6.5215,153.34,153.31,1.30433068]
[1727792237554,6.1871,153.36,153.32,23.776884]
[1727792237759,22.8481,153.39,153.34,6.5214]
[1727792238052,1.30082158,153.44,153.36,23.776884]
[1727792238254,6.518,153.42,153.36,30.296984]
[1727792238553,6.0014,153.5,153.36,30.296984]
[1727792238554,1.30082158,153.48,153.36,40.077484]
[1727792238760,6.5181,153.42,153.38,23.776884]
[1727792238968,16.2907,153.47,153.39,1.30369898]
[1727792238969,6.5176,153.43,153.39,1.30369898]
[1727792239666,1.30082158,153.46,153.37,23.776884]
[1727792239848,1.30082158,153.45,153.36,23.776884]
[1727792240052,16.2931,153.44,153.36,23.776884]
[1727792240266,1.30082158,153.43,153.3,16.3078]
[1727792240471,6.5207,153.36,153.31,6.5223]
[1727792240788,6.5207,153.36,153.32,1.30418622]
[1727792241076,6.5207,153.36,153.31,6.5223]
[1727792241377,6.521,153.35,153.3,22.8309]
[1727792241675,6.5206,153.36,153.31,1.30419164]
[1727792241877,6.5206,153.36,153.3,22.8309]
[1727792241878,6.5197,153.39,153.32,17.60888815]
[1727792242079,22.9524,153.42,153.36,6.5205]
[1727792242080,7.81962158,153.41,153.36,6.5205]
[1727792242262,29.4705,153.42,153.37,7.82389501]
[1727792242656,29.4705,153.42,153.38,23.776884]
[1727792243068,1.30082158,153.41,153.35,16.3025]
[1727792243270,6.5198,153.38,153.32,22.8274]
[1727792243474,1.30082158,153.41,153.29,32.6163]
[1727792243475,6.5211,153.35,153.29,16.3087]
[1727792243659,6.5205,153.37,153.31,6.5226]
[1727792243865,1.30082158,153.4,153.31,6.5226]
[1727792244081,1.30082158,153.4,153.29,16.3087]
[1727792244285,6.5218,153.33,153.29,16.3087]
[1727792244459,6.5215,153.34,153.29,22.8322]
[1727792244977,1.30082158,153.38,153.24,15.3352]
[1727792244978,6.5219,153.33,153.27,6.5243]
[1727792245192,1.30082158,153.38,153.28,1.30438529]
[1727792245366,1.30082158,153.38,153.3,16.3069]
[1727792245561,6.5219,153.33,153.29,6.5231]
[1727792245759,6.5215,153.34,153.29,6.5231]
[1727792246079,6.521,153.35,153.31,6.5226]
[1727792246384,20.0,153.41,153.33,23.776884]
[1727792246385,1.30082158,153.39,153.33,23.776884]
[1727792246678,1.30082158,153.39,153.34,1.30407093]
[1727792246877,1.30082158,153.4,153.34,1.30407093]
[1727792247059,6.6412,153.42,153.35,25.08073041]
[1727792247262,6.5179,153.43,153.39,6.5192]
[1727792247467,1.30082158,153.45,153.4,1.30362834]
[1727792247468,7.81792158,153.45,153.4,1.30362834]
[1727792247671,6.4205,153.46,153.41,23.776884]
[1727792247672,7.72132158,153.46,153.41,23.776884]
[1727792248077,7.72132158,153.46,153.34,23.776884]
[1727792248576,7.72132158,153.46,153.38,23.776884]
[1727792248785,6.5189,153.4,153.38,23.776884]
[1727792249085,7.72132158,153.46,153.37,1.30383158]
[1727792249265,6.5185,153.41,153.36,16.3012]
[1727792249463,6.519,153.4,153.36,16.3012]
[1727792249762,6.5186,153.41,153.36,16.3012]
[1727792249970,6.5186,153.41,153.37,1.30383723]
[1727792250170,1.30082158,153.44,153.38,23.776884]
[1727792250377,6.4205,153.46,153.4,6.5188]
[1727792250378,7.81752158,153.45,153.4,6.5188]
[1727792250561,6.4205,153.46,153.42,23.776884]
[1727792250765,6.4205,153.46,153.43,1.30330325]
[1727792251182,6.2336,153.5,153.44,23.776884]
[1727792251366,6.2336,153.5,153.45,1.3031415]
[1727792251568,6.5151,153.49,153.44,23.776884]
[1727792251766,6.5161,153.47,153.41,6.5181]
[1727792252071,6.2336,153.5,153.31,7.67666207]
[1727792252072,1.30082158,153.46,153.42,23.776884]
[1727792252276,6.5166,153.46,153.4,30.295684]
[1727792252466,6.2336,153.5,153.42,6.518]
[1727792252467,6.5159,153.47,153.42,6.518]
[1727792252879,1.30082158,153.48,153.43,31.5977132]
[1727792253061,7.81622158,153.49,153.43,31.5977132]
[1727792253260,6.5159,153.47,153.42,23.776884]
[1727792253487,1.30082158,153.46,153.42,23.776884]
[1727792253670,6.5168,153.45,153.39,6.5189]
[1727792253992,6.5168,153.45,153.4,23.776884]
[1727792255057,6.5172,153.44,153.4,23.776884]
[1727792255778,21.30082158,153.49,153.37,16.2996]
[1727792255985,16.2906,153.47,153.38,1.30369299]
[1727792256161,20.0,153.49,153.38,1.30369299]
[1727792256162,6.5168,153.45,153.4,6.5185]
[1727792256360,6.5168,153.45,153.41,1.30344614]
[1727792256692,6.5168,153.45,153.4,6.5185]
[1727792257193,1.30082158,153.44,153.3,32.6151]
[1727792257364,6.5201,153.37,153.32,6.5219]
[1727792257687,6.5193,153.39,153.34,6.5213]
[1727792257877,6.5193,153.39,153.35,1.30390845]
[1727792258395,7.52242158,153.41,153.31,16.3057]
[1727792258566,7.52242158,153.41,153.29,6.5235]
[1727792258567,6.5215,153.34,153.29,6.5235]
[1727792258964,6.521,153.35,153.28,16.3096]
[1727792259178,6.521,153.35,153.31,6.5226]
[1727792259683,6.521,153.35,153.3,6.5231]
[1727792260067,17.59862158,153.4,153.29,6.5235]
[1727792260068,6.5214,153.34,153.29,6.5235]
[1727792260261,6.5215,153.34,153.3,6.523]
[1727792260490,6.5215,153.34,153.24,50.0]
[1727792260491,15.2788,153.37,153.22,32.6318]
[1727792260700,1.30082158,153.36,153.26,6.5247]
[1727792260867,6.5232,153.3,153.26,6.5247]
[1727792261059,6.2969,153.32,153.25,16.3129]
[1727792261260,6.5235,153.29,153.25,16.3129]
[1727792261969,6.524,153.28,153.22,48.9479]
[1727792262165,6.5235,153.29,153.24,6.5256]
[1727792262375,1.30082158,153.31,153.22,48.9479]
[1727792262376,1.30082158,153.31,153.22,16.3161]
[1727792262573,1.30082158,153.31,153.23,23.776884]
[1727792262890,6.524,153.28,153.23,30.302584]
[1727792263388,22.6033,153.32,153.17,54.5637]
[1727792263389,15.8198,153.3,153.17,54.5637]
[1727792263593,6.524,153.28,153.21,16.3165]
[1727792263885,6.5236,153.29,153.23,6.526]
[1727792264069,6.5247,153.27,153.21,22.8434]
[1727792264269,6.5248,153.26,153.21,22.8434]
[1727792264887,6.5253,153.25,153.21,16.3165]
[1727792265473,1.30082158,153.29,153.16,0.8371491]
[1727792265474,6.5258,153.24,153.18,6.5279]
[1727792265799,6.5258,153.24,153.19,6.5276]
[1727792266895,6.5265,153.22,153.17,6.5283]
[1727792267189,6.527,153.21,153.16,23.6888491]
[1727792267389,15.9895,153.21,153.16,0.8371491]
[1727792267575,1.30082158,153.2,153.16,0.8371491]
[1727792267779,6.5286,153.17,153.16,0.8371491]
[1727792268691,6.5283,153.18,153.16,0.8371491]
[1727792269471,7.82852158,153.2,153.16,0.8371491]
[1727792269784,7.82832158,153.2,153.16,0.8371491]
[1727792270477,6.528,153.19,153.16,0.8371491]
[1727792270985,1.30082158,153.2,153.16,24.6140331]
[1727792271367,6.5278,153.19,153.16,24.6140331]
[1727792271789,6.5286,153.18,153.16,24.6140331]
[1727792271974,6.5286,153.18,153.16,0.8371491]
[1727792272382,6.5286,153.17,153.16,0.8371491]
[1727792273170,1.30082158,153.2,153.16,0.8371491]
[1727792273391,6.5283,153.18,153.16,0.8371491]
[1727792273772,1.30082158,153.2,153.16,0.8371491]
[1727792273773,6.5286,153.17,153.16,0.8371491]
[1727792273973,1.30082158,153.2,153.16,0.8371491]
[1727792274173,6.5282,153.19,153.16,0.8371491]
[1727792274600,6.5284,153.18,153.16,0.8371491]
[1727792276379,6.5286,153.17,153.16,0.8371491]
[1727792277203,6.5283,153.18,153.16,0.8371491]
[1727792277987,6.5291,153.16,153.12,6.5307]
[1727792278181,6.5291,153.16,153.11,22.8584]
[1727792278396,6.5291,153.16,153.11,16.3273]
[1727792278697,6.5291,153.16,153.11,22.8584]
[1727792279398,6.5296,153.15,153.11,16.3273]
[1727792279777,1.30082158,153.19,153.09,0.1772371]
[1727792280001,6.5296,153.15,153.1,6.5316]
[1727792280204,1.30082158,153.19,153.11,23.776884]
[1727792280510,36.3191,153.2,153.09,0.1772371]
[1727792280511,6.5313,153.11,153.09,0.1772371]
[1727792280796,6.5316,153.1,153.09,0.1772371]
[1727792282200,1.30082158,153.11,153.01,0.8371491]
[1727792282395,1.30082158,153.11,153.01,23.7102491]
[1727792282396,6.5334,153.06,153.01,23.7102491]
[1727792282601,21.30082158,153.11,153.01,17.1751491]
[1727792282902,6.5329,153.08,153.02,1.30675771]
[1727792283293,6.5329,153.07,153.02,6.535]
[1727792284493,1.30082158,153.1,153.01,17.1751491]
[1727792284494,6.5325,153.08,153.03,6.5344]
[1727792284694,1.30082158,153.1,153.06,23.776884]
[1727792285006,6.5317,153.1,153.06,23.776884]
[1727792285186,7.83212158,153.11,153.07,1.30651771]
[1727792285387,6.1677,153.13,153.08,23.776884]
[1727792285687,7.83042158,153.15,153.1,30.308384]
[1727792286002,17.24822158,153.16,153.11,1.30612696]
[1727792286196,1.30082158,153.16,153.11,1.30612696]
[1727792286412,7.82992158,153.16,153.12,23.776884]
[1727792286588,6.6646,153.18,153.14,23.776884]
[1727792286777,15.4157,153.2,153.16,30.305884]
[1727792286982,15.4157,153.2,153.12,16.3267]
[1727792286983,6.5279,153.19,153.12,22.8571]
[1727792287200,6.5279,153.19,153.12,16.3267]
[1727792287377,6.5279,153.19,153.15,23.776884]
[1727792288104,6.5279,153.19,153.13,23.776884]
[1727792288105,1.30082158,153.19,153.13,23.776884]
[1727792288280,20.0,153.22,153.15,23.776884]
[1727792288281,1.30082158,153.21,153.15,23.776884]
[1727792288483,1.30082158,153.21,153.17,23.776884]
[1727792288694,7.86932158,153.23,153.18,1.30556627]
[1727792289006,7.86932158,153.23,153.19,23.776884]
[1727792289007,14.39542158,153.23,153.19,23.776884]
[1727792289199,1.30082158,153.23,153.18,23.776884]
[1727792289509,6.3704,153.27,153.2,23.776884]
[1727792289709,17.61312158,153.26,153.2,23.776884]
[1727792289883,6.5274,153.21,153.15,6.5295]
[1727792290079,17.61312158,153.26,153.16,23.776884]
[1727792290297,6.5257,153.24,153.18,6.5282]
[1727792290501,1.30082158,153.26,153.19,23.776884]
[1727792290702,6.3704,153.27,153.22,6.5264]
[1727792290909,6.5253,153.25,153.2,43.776884]
[1727792291203,7.82562158,153.26,153.2,30.304084]
[1727792291383,7.82562158,153.26,153.2,23.776884]
[1727792291384,1.30082158,153.26,153.2,23.776884]
[1727792291583,6.5257,153.24,153.2,23.776884]
[1727792291790,6.5257,153.24,153.21,1.3051703]
[1727792292111,6.5262,153.23,153.2,23.776884]
[1727792292280,1.30082158,153.23,153.17,23.776884]
[1727792292483,6.3704,153.27,153.17,23.776884]
[1727792292484,6.5266,153.22,153.17,23.776884]
[1727792292805,1.30082158,153.26,153.19,30.304484]
[1727792292806,6.526,153.24,153.19,30.304484]
[1727792292989,6.5253,153.25,153.21,23.776884]
[1727792293604,6.5265,153.22,153.18,16.3204]
[1727792293784,1.30082158,153.26,153.19,1.30542418]
[1727792293980,6.5257,153.24,153.19,7.83322418]
[1727792294185,7.82702158,153.23,153.18,16.3204]
[1727792294381,6.5262,153.23,153.19,1.30530869]
[1727792294911,6.5262,153.23,153.2,1.30530754]
[1727792295099,1.30082158,153.26,153.21,23.776884]
[1727792295291,6.3704,153.27,153.23,23.776884]
[1727792295698,6.5244,153.27,153.24,1.30504139]
[1727792295902,6.524,153.28,153.24,1.30504139]
[1727792296102,6.524,153.28,153.23,23.776884]
[1727792296103,1.30082158,153.27,153.23,23.776884]
[1727792296404,6.5261,153.23,153.2,23.776884]
[1727792296597,6.5265,153.22,153.2,23.776884]
[1727792296791,1.30082158,153.27,153.16,16.3217]
[1727792297002,6.5269,153.21,153.17,23.776884]
[1727792297308,6.5274,153.2,153.16,16.3217]
[1727792297515,48.7175,153.3,153.13,16.3259]
[1727792297516,6.0817,153.23,153.13,16.3259]
[1727792297805,6.5274,153.2,153.15,6.5291]
[1727792298186,6.5281,153.19,153.14,6.5299]
[1727792298716,6.5281,153.19,153.13,16.3259]
[1727792298717,6.5274,153.2,153.13,16.3259]
[1727792298903,6.5274,153.2,153.16,6.529]
[1727792299086,6.5274,153.2,153.15,6.5294]
[1727792299485,6.5283,153.18,153.13,22.8562]
[1727792299682,15.8656,153.21,153.12,6.5307]
[1727792299887,6.5279,153.19,153.09,15.9221]
[1727792300107,15.8656,153.21,153.09,15.9221]
[1727792300108,17.16642158,153.21,153.12,16.3262]
[1727792300486,6.5288,153.17,153.12,22.8569]
[1727792300900,6.5293,153.16,153.13,23.776884]
[1727792301117,6.5294,153.16,153.12,16.3262]
[1727792301404,17.16642158,153.21,153.12,16.3262]
[1727792301405,6.5287,153.17,153.13,7.83611443]
[1727792301590,17.16642158,153.21,153.13,7.83611443]
[1727792302020,17.16642158,153.21,153.12,16.3262]
[1727792302021,6.5287,153.17,153.12,22.8569]
[1727792302504,6.5287,153.17,153.13,23.776884]
[1727792302810,6.5295,153.15,153.12,23.776884]
[1727792303009,6.5302,153.14,153.09,22.8615]
[1727792303395,17.62002158,153.2,153.09,16.3298]
[1727792303598,6.5304,153.13,153.09,16.3298]
[1727792303802,6.53,153.14,153.09,22.8618]
[1727792304000,17.62002158,153.2,153.1,1.30600965]
[1727792304317,6.5287,153.17,153.12,6.5304]
[1727792305104,1.30082158,153.19,153.13,31.61291458]
[1727792305105,6.5283,153.18,153.13,31.61291458]
[1727792305731,1.30082158,153.17,153.13,23.776884]
[1727792305898,15.8656,153.21,153.12,23.776884]
[1727792305899,1.30082158,153.2,153.12,23.776884]
[1727792306096,6.5295,153.15,153.12,23.776884]
[1727792306297,6.5304,153.13,153.09,23.776884]
[1727792306615,16.3205,153.19,153.08,22.8635]
[1727792306616,6.5308,153.12,153.08,16.3311]
[1727792307121,6.5313,153.11,153.06,6.5333]
[1727792307291,1.30082158,153.13,153.05,16.3343]
[1727792307693,6.5316,153.11,153.06,6.5332]
[1727792307891,6.5323,153.09,153.05,16.3343]
[1727792308103,1.30082158,153.13,153.06,7.83961465]
[1727792308104,6.5317,153.1,153.06,7.83961465]
[1727792308605,16.599,153.12,153.06,7.83961465]
[1727792308821,6.5313,153.11,153.06,7.83961465]
[1727792309128,6.5321,153.09,153.05,16.3343]
[1727792310624,6.5337,153.06,153.01,7.3725491]
[1727792310800,6.5341,153.05,153.01,0.8371491]
[1727792311124,1.30082158,153.08,153.01,7.3726491]
[1727792311317,6.5337,153.06,153.01,0.8371491]
[1727792312206,17.63232158,153.08,153.01,0.8371491]
[1727792312406,6.5338,153.05,153.01,0.8371491]
[1727792312997,7.83412158,153.07,153.01,7.3725491]
[1727792313203,6.5321,153.09,153.03,6.5346]
[1727792313397,7.83342158,153.08,153.04,1.30669145]
[1727792313626,7.83252158,153.1,153.05,23.776884]
[1727792313822,7.83252158,153.1,153.06,1.30651142]
[1727792314017,7.83252158,153.1,153.05,23.776884]
[1727792314506,6.5317,153.1,153.05,23.776884]
[1727792314708,23.1298,153.12,153.07,30.309784]
[1727792315108,16.599,153.12,153.08,1.30637817]
[1727792315505,6.0332,153.14,153.1,23.776884]
[1727792315723,7.83122158,153.13,153.08,16.3311]
[1727792315928,6.0332,153.14,153.09,23.776884]
[1727792316230,6.5311,153.12,153.07,23.776884]
[1727792316555,7.83192158,153.12,153.06,30.310184]
[1727792316823,6.0332,153.14,153.1,6.5316]
[1727792317025,6.0332,153.14,153.11,23.776884]
[1727792317213,6.0332,153.14,153.08,23.776884]
[1727792317214,1.30082158,153.13,153.08,23.776884]
[1727792317528,6.0332,153.14,153.1,30.308384]
[1727792317822,6.0332,153.14,153.1,23.776884]
[1727792318133,7.83132158,153.13,153.08,23.776884]
[1727792318718,6.5308,153.12,153.08,23.776884]